fUSD/lending_fUSD_20250627
["ID","MTS","AMOUNT","RATE_DAILY","PERIOD"]
[367982195,1750983042305,-3752.1,0.00024045,2]
[367982196,1750983042315,-490.0,0.00024045,2]
[367982197,1750983042324,-490.0,0.00024045,2]
[367982199,1750983042334,-490.0,0.00024045,2]
[367982200,1750983042343,-490.0,0.00024045,2]
[367982201,1750983042353,-490.0,0.00024045,2]
[367982202,1750983042363,-490.0,0.00024045,2]
[367982203,1750983042372,-551.25,0.00024045,2]
[367982226,1750983042575,-723.84,0.00024045,2]
[367982228,1750983042585,-490.0,0.00024045,2]
[367982230,1750983042594,-490.0,0.00024045,2]
[367982232,1750983042604,-490.0,0.00024045,2]
[367982234,1750983042613,-1312.13,0.00024045,2]
[367982236,1750983042623,-601.85,0.00024045,2]
[367982238,1750983042633,-490.0,0.00024045,2]
[367982240,1750983042642,-490.0,0.00024045,2]
[367982242,1750983042652,-490.0,0.00024045,2]
[367982244,1750983042662,-490.0,0.00024045,2]
[367982246,1750983042672,-490.0,0.00024045,2]
[367982248,1750983042681,-626.9,0.00024045,2]
[367982250,1750983042692,-570.92,0.00024045,2]
[367982252,1750983042702,-749.56,0.00024045,2]
[367982254,1750983042711,-490.0,0.00024045,2]
[367982256,1750983042721,-490.0,0.00024045,2]
[367982258,1750983042730,-490.0,0.00024045,2]
[367982260,1750983042740,-490.0,0.00024045,2]
[367982262,1750983042749,-1652.36,0.00024045,2]
[367982264,1750983042759,-490.0,0.00024045,2]
[367982266,1750983042769,-490.0,0.00024045,2]
[367982268,1750983042778,-2522.61,0.00024045,2]
[367982270,1750983042789,-490.0,0.00024045,2]
[367982272,1750983042798,-713.61,0.00024045,2]
[367982274,1750983042807,-490.0,0.00024045,2]
[367982276,1750983042816,-490.0,0.00024045,2]
[367982278,1750983042825,-1181.71,0.00024045,2]
[367982280,1750983042836,-496.45,0.00024045,2]
[367982282,1750983042845,-490.0,0.00024045,2]
[367982286,1750983042855,-2048.33,0.00024045,2]
[367982288,1750983042864,-959.89,0.00024045,2]
[367982291,1750983042874,-490.0,0.00024045,2]
[367982293,1750983042883,-2189.82,0.00024045,2]
[367982295,1750983042893,-490.0,0.00024045,2]
[367982297,1750983042902,-414.15261104,0.00024045,2]
[367982299,1750983042912,-490.0,0.00024045,2]
[367982301,1750983042921,-917.17,0.00024045,2]
[367982303,1750983042931,-2937.92,0.00024045,2]
[367982305,1750983042941,-490.0,0.00024045,2]
[367982307,1750983042951,-490.0,0.00024045,2]
[367982309,1750983042960,-490.0,0.00024045,2]
[367982311,1750983042970,-490.0,0.00024045,2]
[367982313,1750983042980,-490.0,0.00024045,2]
[367982315,1750983042989,-490.0,0.00024045,2]
[367982317,1750983043000,-490.0,0.00024045,2]
[367982319,1750983043009,-490.0,0.00024046,2]
[367982321,1750983043019,-490.0,0.00024046,2]
[367982323,1750983043029,-490.0,0.00024046,2]
[367982325,1750983043039,-655.3,0.00024046,2]
[367982327,1750983043049,-755.44,0.00024046,2]
[367982329,1750983043059,-490.0,0.00024046,2]
[367982331,1750983043069,-490.0,0.00024046,2]
[367982333,1750983043079,-490.0,0.00024046,2]
[367982335,1750983043090,-490.0,0.00024046,2]
[367982337,1750983043100,-490.0,0.00024046,2]
[367982339,1750983043110,-490.0,0.00024046,2]
[367982341,1750983043120,-490.0,0.00024046,2]
[367982343,1750983043130,-490.0,0.00024046,2]
[367982345,1750983043140,-490.0,0.00024046,2]
[367982347,1750983043151,-490.0,0.00024046,2]
[367982349,1750983043161,-551.98146854,0.00024046,2]
[367982351,1750983043171,-490.0,0.00024046,2]
[367982354,1750983043182,-558.22,0.00024046,2]
[367982356,1750983043192,-912.33,0.00024046,2]
[367982358,1750983043202,-490.0,0.00024046,2]
[367982359,1750983043215,-490.0,0.00024046,2]
[367982362,1750983043225,-545.28,0.00024046,2]
[367982364,1750983043235,-490.0,0.00024046,2]
[367982366,1750983043244,-490.0,0.00024046,2]
[367982367,1750983043255,-490.0,0.00024046,2]
[367982370,1750983043265,-490.0,0.00024046,2]
[367982371,1750983043275,-490.0,0.00024046,2]
[367982375,1750983043287,-490.0,0.00024046,2]
[367982378,1750983043298,-490.0,0.00024046,2]
[367982381,1750983043307,-490.0,0.00024046,2]
[367982384,1750983043318,-614.09,0.00024046,2]
[367982387,1750983043328,-490.0,0.00024046,2]
[367982390,1750983043338,-723.4,0.00024046,2]
[367982394,1750983043349,-563.91,0.00024046,2]
[367982396,1750983043359,-508.89,0.00024046,2]
[367982398,1750983043369,-599.63,0.00024046,2]
[367982400,1750983043380,-602.95,0.00024046,2]
[367982402,1750983043389,-490.0,0.00024046,2]
[367982404,1750983043399,-492.89,0.00024046,2]
[367982406,1750983043410,-592.63,0.00024046,2]
[367982408,1750983043421,-490.0,0.00024046,2]
[367982410,1750983043431,-490.0,0.00024046,2]
[367982412,1750983043441,-490.0,0.00024046,2]
[367982414,1750983043450,-490.0,0.00024046,2]
[367982416,1750983043460,-510.1,0.00024046,2]
[367982418,1750983043470,-490.0,0.00024046,2]
[367982420,1750983043480,-490.0,0.00024046,2]
[367982422,1750983043490,-510.0,0.00024046,2]
[367982424,1750983043501,-538.56,0.00024046,2]
[367982426,1750983043511,-490.0,0.00024046,2]
[367982428,1750983043521,-490.0,0.00024046,2]
[367982430,1750983043531,-1839.3,0.00024046,2]
[367982432,1750983043541,-490.0,0.00024046,2]
[367982434,1750983043551,-490.0,0.00024046,2]
[367982436,1750983043560,-658.85,0.00024046,2]
[367982438,1750983043571,-500.45,0.00024046,2]
[367982441,1750983043581,-490.0,0.00024046,2]
[367982443,1750983043591,-490.0,0.00024046,2]
[367982445,1750983043601,-3573.71,0.00024046,2]
[367982447,1750983043610,-490.0,0.00024046,2]
[367982449,1750983043620,-9728.1,0.00024046,2]
[367982451,1750983043629,-238.53891553,0.00024046,2]
[367982452,1750983043639,-490.0,0.00024046,2]
[367982455,1750983043649,-490.0,0.00024046,2]
[367982456,1750983043659,-490.0,0.00024046,2]
[367982458,1750983043670,-3818.81,0.00024046,2]
[367982461,1750983043680,-1249.39,0.00024046,2]
[367982463,1750983043690,-618.12,0.00024046,2]
[367982465,1750983043699,-877.87,0.00024046,2]
[367982467,1750983043709,-681.94,0.00024046,2]
[367982469,1750983043719,-1926.64,0.00024046,2]
[367982471,1750983043728,-590.96,0.00024046,2]
[367982473,1750983043738,-812.27,0.00024046,2]
[367982475,1750983043747,-1038.35,0.00024046,2]
[367982477,1750983043756,-987.98,0.00024046,2]
[367982479,1750983043766,-531.81,0.00024046,2]
[367982480,1750983043775,-792.86,0.00024046,2]
[367982483,1750983043786,-875.56,0.00024046,2]
[367982484,1750983043795,-490.0,0.00024046,2]
[367982486,1750983043805,-645.24,0.00024046,2]
[367982489,1750983043816,-490.0,0.00024046,2]
[367982491,1750983043825,-1225.65,0.00024046,2]
[367982493,1750983043835,-490.0,0.00024046,2]
[367982495,1750983043844,-817.92,0.00024046,2]
[367982497,1750983043854,-762.89,0.00024046,2]
[367982499,1750983043863,-1014.6,0.00024046,2]
[367982501,1750983043872,-7624.91,0.00024046,2]
[367982503,1750983043882,-490.0,0.00024046,2]
[367982505,1750983043891,-1248.12,0.00024046,2]
[367982507,1750983043901,-490.0,0.00024046,2]
[367982509,1750983043910,-3735.08,0.00024046,2]
[367982511,1750983043920,-490.0,0.00024046,2]
[367982513,1750983043930,-490.0,0.00024046,2]
[367982515,1750983043939,-490.0,0.00024046,2]
[367982517,1750983043949,-490.0,0.00024046,2]
[367982519,1750983043958,-629.33,0.00024046,2]
[367982521,1750983043968,-901.22,0.00024046,2]
[367982523,1750983043977,-635.97,0.00024046,2]
[367982525,1750983043988,-608.98,0.00024046,2]
[367982527,1750983043997,-6398.13,0.00024046,2]
[367982529,1750983044007,-1036.78,0.00024046,2]
[367982531,1750983044016,-715.56,0.00024046,2]
[367982533,1750983044026,-490.0,0.00024046,2]
[367982535,1750983044037,-2035.01,0.00024046,2]
[367982537,1750983044047,-623.74,0.00024046,2]
[367982539,1750983044057,-737.2,0.00024046,2]
[367982541,1750983044067,-808.31,0.00024046,2]
[367982543,1750983044077,-1112.93,0.00024046,2]
[367982545,1750983044087,-975.73,0.00024046,2]
[367982547,1750983044098,-614.71,0.00024046,2]
[367982549,1750983044108,-490.0,0.00024046,2]
[367982551,1750983044119,-949.92,0.00024046,2]
[367982553,1750983044128,-629.22,0.00024046,2]
[367982555,1750983044139,-3138.94,0.00024046,2]
[367982557,1750983044149,-960.2,0.00024046,2]
[367982559,1750983044158,-3555.66,0.00024046,2]
[367982561,1750983044172,-48840.7,0.00024046,2]
[367982563,1750983044182,-871.52,0.00024046,2]
[367982565,1750983044193,-490.0,0.00024046,2]
[367982568,1750983044204,-2310.35524765,0.00024219,2]
[367982570,1750983044215,-1074.01692912,0.00024219,2]
[367982572,1750983044225,-162.380719,0.00024228,2]
[367982574,1750983044235,-258.10437536,0.00024306,2]
[367982576,1750983044244,-1882.06896487,0.00024306,2]
[367982578,1750983044254,-490.0,0.00024318,2]
[367982580,1750983044264,-490.0,0.00024318,2]
[367982582,1750983044274,-490.0,0.00024318,2]
[367982584,1750983044283,-490.0,0.00024318,2]
[367982586,1750983044293,-490.0,0.00024318,2]
[367982588,1750983044302,-490.0,0.00024318,2]
[367982590,1750983044312,-490.0,0.00024318,2]
[367982592,1750983044322,-494.60625258,0.00024318,2]
[367982594,1750983044331,-490.0,0.00024318,2]
[367982596,1750983044341,-490.0,0.00024318,2]
[367982598,1750983044350,-490.0,0.00024318,2]
[367982600,1750983044360,-344.15390918,0.00024318,2]
[367982602,1750983044370,-490.0,0.00024318,2]
[367982604,1750983044380,-490.0,0.00024318,2]
[367982606,1750983044389,-490.0,0.00024318,2]
[367982608,1750983044399,-490.0,0.00024318,2]
[367982610,1750983044408,-210.0,0.00024318,2]
[367982612,1750983044418,-490.0,0.00024318,2]
[367982614,1750983044428,-490.0,0.00024318,2]
[367982616,1750983044437,-490.0,0.00024318,2]
[367982618,1750983044446,-490.0,0.00024318,2]
[367982620,1750983044456,-490.0,0.00024318,2]
[367982622,1750983044465,-490.0,0.00024318,2]
[367982624,1750983044475,-490.0,0.00024318,2]
[367982626,1750983044485,-214.22236239,0.00024318,2]
[367982628,1750983044495,-490.0,0.00024318,2]
[367982630,1750983044504,-490.0,0.00024318,2]
[367982632,1750983044513,-490.0,0.00024318,2]
[367982634,1750983044523,-490.0,0.00024318,2]
[367982636,1750983044533,-490.0,0.00024318,2]
[367982638,1750983044542,-490.0,0.00024318,2]
[367982640,1750983044551,-490.0,0.00024318,2]
[367982642,1750983044561,-490.0,0.00024318,2]
[367982644,1750983044572,-490.0,0.00024318,2]
[367982646,1750983044581,-490.0,0.00024318,2]
[367982648,1750983044590,-490.0,0.00024318,2]
[367982650,1750983044600,-490.0,0.00024318,2]
[367982652,1750983044610,-490.0,0.00024318,2]
[367982654,1750983044619,-490.0,0.00024318,2]
[367982656,1750983044629,-490.0,0.00024318,2]
[367982658,1750983044639,-490.0,0.00024318,2]
[367982660,1750983044650,-490.0,0.00024318,2]
[367982662,1750983044660,-225.3139537,0.00024318,2]
[367982664,1750983044671,-490.0,0.00024318,2]
[367982667,1750983044681,-490.0,0.00024318,2]
[367982669,1750983044695,-490.0,0.00024318,2]
[367982671,1750983044705,-550.66,0.00024318,2]
[367982673,1750983044715,-490.0,0.00024318,2]
[367982675,1750983044725,-490.0,0.00024318,2]
[367982677,1750983044735,-490.0,0.00024318,2]
[367982679,1750983044744,-490.0,0.00024318,2]
[367982681,1750983044754,-490.0,0.00024318,2]
[367982683,1750983044763,-543.28,0.00024318,2]
[367982685,1750983044773,-490.0,0.00024318,2]
[367982687,1750983044782,-490.0,0.00024318,2]
[367982689,1750983044792,-490.0,0.00024318,2]
[367982691,1750983044801,-490.0,0.00024318,2]
[367982693,1750983044811,-587.08,0.00024318,2]
[367982695,1750983044820,-490.0,0.00024318,2]
[367982697,1750983044830,-490.0,0.00024318,2]
[367982699,1750983044840,-496.39543934,0.00024318,2]
[367982701,1750983044850,-490.0,0.00024318,2]
[367982703,1750983044859,-493.39862388,0.00024318,2]
[367982705,1750983044869,-490.0,0.00024318,2]
[367982707,1750983044879,-490.0,0.00024318,2]
[367982709,1750983044888,-490.0,0.00024318,2]
[367982711,1750983044897,-490.0,0.00024318,2]
[367982713,1750983044907,-490.0,0.00024318,2]
[367982715,1750983044918,-490.0,0.00024318,2]
[367982717,1750983044928,-490.0,0.00024318,2]
[367982719,1750983044937,-490.0,0.00024318,2]
[367982721,1750983044946,-490.0,0.00024318,2]
[367982730,1750983045024,-490.0,0.00024318,2]
[367982732,1750983045034,-490.0,0.00024318,2]
[367982734,1750983045044,-426.22129414,0.00024318,2]
[367982736,1750983045053,-490.0,0.00024318,2]
[367982738,1750983045062,-511.81,0.00024318,2]
[367982740,1750983045071,-490.0,0.00024318,2]
[367982742,1750983045081,-490.0,0.00024318,2]
[367982744,1750983045090,-490.0,0.00024318,2]
[367982746,1750983045100,-490.0,0.00024318,2]
[367982748,1750983045109,-490.0,0.00024318,2]
[367982750,1750983045119,-490.0,0.00024318,2]
[367982752,1750983045128,-490.0,0.00024318,2]
[367982754,1750983045138,-490.0,0.00024318,2]
[367982756,1750983045147,-518.14,0.00024318,2]
[367982758,1750983045157,-490.0,0.00024318,2]
[367982760,1750983045166,-490.0,0.00024318,2]
[367982762,1750983045176,-490.0,0.00024318,2]
[367982764,1750983045186,-490.0,0.00024318,2]
[367982766,1750983045195,-490.0,0.00024318,2]
[367982768,1750983045206,-490.0,0.00024318,2]
[367982770,1750983045217,-490.0,0.00024318,2]
[367982772,1750983045227,-490.0,0.00024318,2]
[367982774,1750983045235,-204.61956627,0.00024318,2]
[367982776,1750983045246,-490.0,0.00024318,2]
[367982778,1750983045256,-490.0,0.00024318,2]
[367982779,1750983045265,-493.4287382,0.00024318,2]
[367982780,1750983045274,-490.0,0.00024318,2]
[367982781,1750983045286,-490.0,0.00024318,2]
[367982782,1750983045297,-490.0,0.00024318,2]
[367982783,1750983045305,-490.0,0.00024318,2]
[367982784,1750983045314,-490.0,0.00024318,2]
[367982785,1750983045323,-490.0,0.00024318,2]
[367982786,1750983045332,-494.13621758,0.00024318,2]
[367982787,1750983045341,-461.60746467,0.00024318,2]
[367982788,1750983045351,-490.0,0.00024318,2]
[367982789,1750983045361,-490.0,0.00024318,2]
[367982790,1750983045371,-490.0,0.00024318,2]
[367982791,1750983045380,-490.0,0.00024318,2]
[367982793,1750983045389,-490.0,0.00024318,2]
[367982794,1750983045398,-490.0,0.00024318,2]
[367982797,1750983045407,-490.0,0.00024318,2]
[367982799,1750983045417,-490.0,0.00024318,2]
[367982802,1750983045427,-490.0,0.00024318,2]
[367982805,1750983045436,-490.0,0.00024318,2]
[367982808,1750983045446,-972.66,0.00024318,2]
[367982811,1750983045455,-490.0,0.00024318,2]
[367982813,1750983045464,-490.0,0.00024318,2]
[367982815,1750983045474,-490.0,0.00024318,2]
[367982817,1750983045484,-490.0,0.00024318,2]
[367982819,1750983045493,-490.0,0.00024318,2]
[367982821,1750983045502,-490.0,0.00024318,2]
[367982823,1750983045511,-323.13226223,0.00024318,2]
[367982825,1750983045522,-490.0,0.00024318,2]
[367982827,1750983045531,-477.44,0.00024318,2]
[367982830,1750983045541,-490.0,0.00024318,2]
[367982831,1750983045551,-490.0,0.00024318,2]
[367982834,1750983045560,-719.16,0.00024318,2]
[367982836,1750983045570,-490.0,0.00024318,2]
[367982837,1750983045579,-545.81,0.00024318,2]
[367982840,1750983045589,-490.0,0.00024318,2]
[367982841,1750983045599,-490.0,0.00024318,2]
[367982844,1750983045609,-490.0,0.00024318,2]
[367982845,1750983045618,-550.53,0.00024318,2]
[367982847,1750983045627,-490.0,0.00024318,2]
[367982849,1750983045636,-490.0,0.00024318,2]
[367982851,1750983045646,-490.0,0.00024318,2]
[367982853,1750983045656,-547.65834527,0.00024318,2]
[367982856,1750983045665,-490.0,0.00024318,2]
[367982857,1750983045675,-490.0,0.00024318,2]
[367982859,1750983045685,-490.0,0.00024318,2]
[367982861,1750983045694,-490.0,0.00024318,2]
[367982863,1750983045703,-490.0,0.00024318,2]
[367982865,1750983045713,-490.0,0.00024318,2]
[367982867,1750983045722,-501.12880508,0.00024318,2]
[367982869,1750983045732,-490.0,0.00024318,2]
[367982871,1750983045741,-490.0,0.00024318,2]
[367982873,1750983045750,-490.0,0.00024318,2]
[367982875,1750983045760,-490.0,0.00024318,2]
[367982877,1750983045770,-490.0,0.00024318,2]
[367982879,1750983045779,-490.0,0.00024318,2]
[367982881,1750983045788,-490.0,0.00024318,2]
[367982883,1750983045798,-490.0,0.00024318,2]
[367982885,1750983045807,-615.89194816,0.00024318,2]
[367982887,1750983045816,-490.0,0.00024318,2]
[367982889,1750983045827,-490.0,0.00024318,2]
[367982891,1750983045836,-571.25,0.00024318,2]
[367982893,1750983045846,-490.0,0.00024318,2]
[367982895,1750983045855,-490.0,0.00024318,2]
[367982897,1750983045870,-490.0,0.00024318,2]
[367982899,1750983045880,-490.0,0.00024318,2]
[367982901,1750983045890,-584.29,0.00024318,2]
[367982903,1750983045900,-490.0,0.00024318,2]
[367982906,1750983045909,-621.48304501,0.00024318,2]
[367982908,1750983045919,-493.0082018,0.00024318,2]
[367982909,1750983045929,-490.0,0.00024318,2]
[367982912,1750983045939,-490.0,0.00024318,2]
[367982914,1750983045948,-490.0,0.00024318,2]
[367982916,1750983045958,-490.0,0.00024318,2]
[367982918,1750983045968,-504.66,0.00024318,2]
[367982919,1750983045977,-490.0,0.00024318,2]
[367982922,1750983045987,-490.0,0.00024318,2]
[367982923,1750983045996,-490.0,0.00024318,2]
[367982926,1750983046006,-238.17324731,0.00024318,2]
[367982928,1750983046016,-490.0,0.00024318,2]
[367982930,1750983046025,-490.0,0.00024318,2]
[367982932,1750983046035,-490.0,0.00024318,2]
[367982934,1750983046044,-490.0,0.00024318,2]
[367982936,1750983046054,-490.0,0.00024318,2]
[367982938,1750983046063,-490.0,0.00024318,2]
[367982940,1750983046073,-490.0,0.00024318,2]
[367982941,1750983046082,-234.45572575,0.00024318,2]
[367982943,1750983046092,-490.0,0.00024318,2]
[367982946,1750983046102,-490.0,0.00024318,2]
[367982948,1750983046112,-490.0,0.00024318,2]
[367982950,1750983046121,-490.0,0.00024318,2]
[367982951,1750983046131,-490.0,0.00024318,2]
[367982953,1750983046140,-490.0,0.00024318,2]
[367982955,1750983046149,-490.0,0.00024318,2]
[367982958,1750983046159,-490.0,0.00024318,2]
[367982959,1750983046168,-490.0,0.00024318,2]
[367982961,1750983046178,-490.0,0.00024318,2]
[367982964,1750983046188,-490.0,0.00024318,2]
[367982965,1750983046197,-490.0,0.00024318,2]
[367982968,1750983046210,-632.25784033,0.00024318,2]
[367982969,1750983046219,-618.85,0.00024318,2]
[367982971,1750983046229,-490.0,0.00024318,2]
[367982974,1750983046241,-490.0,0.00024318,2]
[367982975,1750983046251,-490.0,0.00024318,2]
[367982977,1750983046260,-490.0,0.00024318,2]
[367982979,1750983046269,-490.0,0.00024318,2]
[367982982,1750983046279,-490.0,0.00024318,2]
[367982983,1750983046289,-490.0,0.00024318,2]
[367982985,1750983046299,-490.0,0.00024318,2]
[367982987,1750983046308,-490.0,0.00024318,2]
[367982989,1750983046317,-490.0,0.00024318,2]
[367982991,1750983046327,-490.0,0.00024318,2]
[367982993,1750983046336,-490.0,0.00024318,2]
[367982995,1750983046345,-490.0,0.00024318,2]
[367982997,1750983046354,-490.0,0.00024318,2]
[367982999,1750983046363,-490.0,0.00024318,2]
[367983001,1750983046372,-490.0,0.00024318,2]
[367983003,1750983046382,-493.0318034,0.00024318,2]
[367983005,1750983046391,-280.0,0.00024318,2]
[367983007,1750983046401,-490.0,0.00024318,2]
[367983009,1750983046410,-490.0,0.00024318,2]
[367983011,1750983046421,-490.0,0.00024318,2]
[367983013,1750983046430,-490.0,0.00024318,2]
[367983015,1750983046439,-490.0,0.00024318,2]
[367983017,1750983046449,-490.0,0.00024318,2]
[367983019,1750983046458,-599.23,0.00024318,2]
[367983021,1750983046468,-490.0,0.00024318,2]
[367983023,1750983046477,-490.0,0.00024318,2]
[367983025,1750983046487,-729.2,0.00024318,2]
[367983027,1750983046496,-490.0,0.00024318,2]
[367983029,1750983046505,-490.0,0.00024318,2]
[367983031,1750983046515,-288.050687,0.00024318,2]
[367983033,1750983046525,-490.0,0.00024318,2]
[367983035,1750983046534,-505.75,0.00024318,2]
[367983037,1750983046543,-478.32681738,0.00024318,2]
[367983039,1750983046552,-490.0,0.00024318,2]
[367983041,1750983046562,-347.76785313,0.00024318,2]
[367983043,1750983046571,-490.0,0.00024318,2]
[367983045,1750983046580,-490.0,0.00024318,2]
[367983047,1750983046590,-1000.0,0.00024318,2]
[367983049,1750983046600,-490.0,0.00024318,2]
[367983051,1750983046609,-989.3,0.00024318,2]
[367983053,1750983046618,-490.0,0.00024318,2]
[367983055,1750983046628,-490.0,0.00024318,2]
[367983057,1750983046637,-490.0,0.00024318,2]
[367983059,1750983046647,-490.0,0.00024318,2]
[367983061,1750983046657,-490.0,0.00024318,2]
[367983063,1750983046666,-490.0,0.00024318,2]
[367983065,1750983046679,-490.0,0.00024318,2]
[367983067,1750983046689,-490.0,0.00024318,2]
[367983069,1750983046698,-490.0,0.00024318,2]
[367983071,1750983046708,-490.0,0.00024318,2]
[367983073,1750983046719,-490.0,0.00024318,2]
[367983075,1750983046728,-490.0,0.00024318,2]
[367983077,1750983046738,-490.0,0.00024318,2]
[367983079,1750983046747,-490.0,0.00024318,2]
[367983081,1750983046757,-490.0,0.00024318,2]
[367983083,1750983046766,-490.0,0.00024318,2]
[367983085,1750983046776,-1276.9,0.00024318,2]
[367983087,1750983046785,-490.0,0.00024318,2]
[367983089,1750983046796,-488.90012835,0.00024318,2]
[367983091,1750983046805,-490.0,0.00024318,2]
[367983093,1750983046815,-490.0,0.00024318,2]
[367983095,1750983046824,-490.0,0.00024318,2]
[367983097,1750983046833,-490.0,0.00024318,2]
[367983099,1750983046843,-490.0,0.00024318,2]
[367983101,1750983046853,-490.0,0.00024318,2]
[367983103,1750983046863,-490.0,0.00024318,2]
[367983105,1750983046873,-490.0,0.00024318,2]
[367983107,1750983046882,-725.69,0.00024318,2]
[367983109,1750983046891,-490.0,0.00024318,2]
[367983111,1750983046902,-490.0,0.00024318,2]
[367983113,1750983046912,-490.0,0.00024318,2]
[367983115,1750983046921,-490.0,0.00024318,2]
[367983117,1750983046930,-490.0,0.00024318,2]
[367983119,1750983046940,-964.11,0.00024318,2]
[367983121,1750983046950,-500.0,0.00024318,2]
[367983123,1750983046960,-490.0,0.00024318,2]
[367983125,1750983046969,-490.0,0.00024318,2]
[367983127,1750983046978,-490.0,0.00024318,2]
[367983129,1750983046988,-490.0,0.00024318,2]
[367983131,1750983046997,-490.0,0.00024318,2]
[367983133,1750983047007,-1187.68,0.00024318,2]
[367983135,1750983047017,-490.0,0.00024318,2]
[367983137,1750983047026,-490.0,0.00024318,2]
[367983139,1750983047036,-554.89,0.00024318,2]
[367983141,1750983047046,-490.0,0.00024318,2]
[367983143,1750983047055,-490.0,0.00024318,2]
[367983145,1750983047065,-490.0,0.00024318,2]
[367983147,1750983047075,-490.0,0.00024318,2]
[367983149,1750983047084,-490.0,0.00024318,2]
[367983151,1750983047094,-1213.4,0.00024318,2]
[367983153,1750983047103,-490.0,0.00024318,2]
[367983155,1750983047113,-490.0,0.00024318,2]
[367983157,1750983047123,-490.0,0.00024318,2]
[367983159,1750983047133,-490.0,0.00024318,2]
[367983161,1750983047142,-490.0,0.00024318,2]
[367983163,1750983047152,-490.0,0.00024318,2]
[367983165,1750983047162,-490.0,0.00024318,2]
[367983167,1750983047173,-490.0,0.00024318,2]
[367983169,1750983047184,-490.0,0.00024318,2]
[367983171,1750983047194,-490.0,0.00024318,2]
[367983173,1750983047207,-490.0,0.00024318,2]
[367983176,1750983047218,-490.0,0.00024318,2]
[367983178,1750983047228,-490.0,0.00024318,2]
[367983180,1750983047238,-1267.06,0.00024318,2]
[367983182,1750983047248,-490.0,0.00024318,2]
[367983184,1750983047258,-490.0,0.00024318,2]
[367983186,1750983047268,-980.28,0.00024318,2]
[367983188,1750983047278,-2372.84,0.00024318,2]
[367983190,1750983047288,-490.0,0.00024318,2]
[367983192,1750983047299,-490.0,0.00024318,2]
[367983194,1750983047309,-490.0,0.00024318,2]
[367983196,1750983047318,-490.0,0.00024318,2]
[367983198,1750983047329,-490.0,0.00024318,2]
[367983200,1750983047339,-490.0,0.00024318,2]
[367983202,1750983047349,-168.87504703,0.00024318,2]
[367983204,1750983047360,-490.0,0.00024318,2]
[367983206,1750983047370,-490.0,0.00024318,2]
[367983208,1750983047380,-490.0,0.00024318,2]
[367983210,1750983047390,-1357.55,0.00024318,2]
[367983212,1750983047401,-185.37,0.00024318,2]
[367983214,1750983047411,-490.0,0.00024318,2]
[367983216,1750983047422,-490.0,0.00024318,2]
[367983218,1750983047431,-490.0,0.00024318,2]
[367983220,1750983047441,-555.40971441,0.00024318,2]
[367983222,1750983047451,-490.0,0.00024318,2]